fUST/lending_fUST_20240719
["ID","MTS","AMOUNT","RATE_DAILY","PERIOD"]
[332636647,1721387439729,-191.32441054,0.00017832,2]
[332636648,1721387439738,-250.0,0.00017871,2]
[332636649,1721387439747,-250.0,0.00017919,2]
[332636650,1721387439757,-250.0,0.00017967,2]
[332636651,1721387439766,-250.0,0.00018015,2]
[332636652,1721387439775,-250.0,0.00018063,2]
[332636653,1721387439785,-250.0,0.00018111,2]
[332636654,1721387439794,-250.0,0.00018159,2]
[332636655,1721387439803,-250.0,0.00018207,2]
[332636656,1721387439812,-495.7,0.00018224,2]
[332636657,1721387439821,-250.0,0.00018255,2]
[332636658,1721387439830,-250.0,0.00018303,2]
[332636659,1721387439839,-495.7,0.00018336,2]
[332636660,1721387439848,-250.0,0.00018351,2]
[332636661,1721387439857,-250.0,0.00018399,2]
[332636662,1721387439866,-495.7,0.00018448,2]
[332636663,1721387439876,-151.0,0.00018448,2]
[332636664,1721387439886,-495.7,0.00018559,2]
[332636665,1721387439895,-151.0,0.00018559,2]
[332636666,1721387439904,-153.0,0.0001863,2]
[332636667,1721387439913,-153.0,0.0001863,2]
[332636668,1721387439923,-153.0,0.0001863,2]
[332636669,1721387439932,-153.0,0.0001863,2]
[332636670,1721387439942,-495.7,0.00018671,2]
[332636671,1721387439951,-151.0,0.00018671,2]
[332636672,1721387439965,-153.0,0.00018678,2]
[332636673,1721387439974,-150.59952781,0.00018692,2]
[332636674,1721387439984,-150.0,0.00018701,2]
[332636675,1721387439993,-504.0,0.00018701,2]
[332636676,1721387440002,-1408.0,0.00018701,2]
[332636677,1721387440011,-495.7,0.00018782,2]
[332636678,1721387440021,-151.0,0.00018782,2]
[332636679,1721387440029,-206.44449224,0.00018799,3]
[332636680,1721387440041,-495.7,0.00018894,2]
[332636681,1721387440050,-151.0,0.00018894,2]
[332636682,1721387440060,-2000.0,0.00018899,14]
[332636683,1721387440068,-2000.0,0.00018899,14]
[332636684,1721387440078,-2000.0,0.00018899,14]
[332636685,1721387440087,-2000.0,0.00018899,14]
[332636686,1721387440096,-2000.0,0.00018899,14]
[332636687,1721387440105,-2000.0,0.00018899,14]
[332636688,1721387440114,-155.55991375,0.000189,2]
[332636689,1721387440124,-620.00000136,0.00018968,2]
[332636690,1721387440133,-3294.12066353,0.00018969,2]
[332636691,1721387440142,-154.80649189,0.00018989,2]
[332636692,1721387440152,-982.80619448,0.00018999,2]
[332636693,1721387440161,-5038.63202953,0.00019,2]
[332636694,1721387440170,-578.57776587,0.00019,2]
[332636695,1721387440180,-587.0,0.00019005,2]
[332636696,1721387440189,-495.7,0.00019006,2]
[332636697,1721387440198,-151.0,0.00019006,2]
[332636698,1721387440207,-578.57776584,0.0001902,2]
[332636699,1721387440216,-578.57776584,0.00019039,2]
[332636700,1721387440226,-250.0,0.00019041,2]
[332636701,1721387440235,-578.57776584,0.00019059,2]
[332636702,1721387440245,-500.0,0.00019067,2]
[332636703,1721387440255,-500.0,0.00019067,2]
[332636705,1721387440264,-500.0,0.00019067,2]
[332636707,1721387440273,-500.0,0.00019067,2]
[332636709,1721387440282,-500.0,0.00019067,2]
[332636711,1721387440292,-500.0,0.00019067,2]
[332636713,1721387440301,-309.25656904,0.00019067,2]
[332636715,1721387440309,-30255.62738718,0.00019068,2]
[332636716,1721387440318,-578.57776584,0.00019078,2]
[332636719,1721387440328,-275.42599079,0.00019085,2]
[332636720,1721387440337,-11996.82657548,0.0001909,2]
[332636810,1721387443835,-154.80649189,0.00019046,2]
[332636811,1721387443847,-33432.80882272,0.0001909,2]
[332636812,1721387443858,-182.22575443,0.000191,2]
[332636813,1721387443868,-19434.15346196,0.000191,2]
[332636814,1721387443877,-218.40634316,0.000191,2]
[332636815,1721387443887,-164.49158165,0.000191,2]
[332636816,1721387443896,-2105.76943121,0.000191,2]
[332636817,1721387443906,-155.25511355,0.000191,2]
[332636818,1721387443915,-300.530774,0.000191,8]
[332636819,1721387443925,-156.81599663,0.000191,2]
[332636820,1721387443934,-495.7,0.00019117,2]
[332636821,1721387443944,-151.0,0.00019117,2]
[332636822,1721387443954,-150.5,0.00019148,7]
[332636823,1721387443968,-150.5,0.00019158,7]
[332636824,1721387443978,-500.0,0.00019167,2]
[332636825,1721387443987,-500.0,0.00019167,2]
[332636826,1721387443997,-266.50533278,0.00019167,2]
[332636827,1721387444009,-500.0,0.00019167,2]
[332636829,1721387444019,-500.0,0.00019167,2]
[332636831,1721387444028,-200.4451586,0.00019167,2]
[332636833,1721387444039,-500.0,0.00019167,2]
[332636835,1721387444048,-500.0,0.00019167,2]
[332636837,1721387444058,-649.77879472,0.00019167,2]
[332636839,1721387444067,-500.0,0.00019167,2]
[332636841,1721387444077,-500.0,0.00019167,2]
[332636843,1721387444087,-500.0,0.00019167,2]
[332636845,1721387444096,-500.0,0.00019167,2]
[332636847,1721387444105,-423.11784227,0.00019167,2]
[332636849,1721387444115,-10519.07220535,0.00019168,5]
[332636851,1721387444125,-150.5,0.00019168,7]
[332636853,1721387444135,-9704.88865589,0.00019168,2]
[332636958,1721388185897,13000.0,0.0002505,120]
[332636962,1721388364647,18962.36323128,0.00025,120]
[332636963,1721388364676,41413.17676872,0.00025,120]
[332637051,1721388638460,-166.666666,0.00014795,2]
[332637052,1721388638470,-170.806824,0.0001757,2]
[332637053,1721388638482,-17.87151015,0.00017839,2]
[332637109,1721388646162,-282.12848985,0.00017839,2]
[332637110,1721388646172,-5906.93698088,0.0001784,2]
[332637118,1721389329902,273.37336231,9.9e-05,2]
[332637119,1721389337553,273.37336231,9.9e-05,2]
[332637120,1721389347057,273.37336231,9.9e-05,2]
[332637121,1721389355926,273.37336231,9.9e-05,2]
[332637122,1721389358851,526.26848513,0.00012,2]
[332637123,1721389364296,273.37336231,9.9e-05,2]
[332637124,1721389372979,273.37336231,9.9e-05,2]
[332637125,1721389381807,273.37336231,9.9e-05,2]
[332637126,1721389382904,392.04070002,0.00012,2]
[332637127,1721389390503,273.37336231,9.9e-05,2]
[332637128,1721389398657,273.37336231,9.9e-05,2]
[332637129,1721389402090,7441.14359681,9.9e-05,2]
[332637130,1721389404849,524.37521141,0.00012,2]
[332637131,1721389406680,273.37336231,9.9e-05,2]
[332637132,1721389414946,294.51676518,9.9e-05,2]
[332637133,1721389415764,273.37336231,9.9e-05,2]
[332637134,1721389420014,206.01257409,9.9e-05,2]
[332637135,1721389423886,3777.63299636,9.9e-05,2]
[332637136,1721389423951,273.37336231,9.9e-05,2]
[332637137,1721389429087,2150.39056502,9.9e-05,2]
[332637138,1721389432567,273.37336231,9.9e-05,2]
[332637139,1721389434899,4705.80644641,9.9e-05,2]
[332637140,1721389438231,246.502,9.9e-05,2]
[332637141,1721389440278,2105.76943121,9.9e-05,2]
[332637142,1721389441434,273.37336231,9.9e-05,2]
[332637143,1721389444927,4422.91963981,0.00012,2]
[332637144,1721389450274,273.37336231,9.9e-05,2]
[332637145,1721389458335,273.37336231,9.9e-05,2]
[332637146,1721389467178,273.37336231,9.9e-05,2]
[332637147,1721389475228,273.37336231,9.9e-05,2]
[332637148,1721389484574,273.37336231,9.9e-05,2]
[332637149,1721389500171,273.37336231,9.9e-05,2]
[332637150,1721389508111,273.37336231,9.9e-05,2]
[332637151,1721389516559,273.37336231,9.9e-05,2]
[332637152,1721389520394,1579.38808726,0.00012,2]
[332637153,1721389524394,273.37336231,9.9e-05,2]
[332637154,1721389530244,583.81685434,9.9e-05,2]
[332637155,1721389533423,273.37336231,9.9e-05,2]
[332637156,1721389538489,530.20355034,9.999e-05,2]
[332637157,1721389541509,273.37336231,9.9e-05,2]
[332637158,1721389551012,273.37336231,9.9e-05,2]
[332637159,1721389559724,273.37336231,9.9e-05,2]
[332637160,1721389568613,273.37336231,9.9e-05,2]
[332637161,1721389576459,155.50074004,0.00012,2]
[332637162,1721389620248,156.39383641,0.00012,2]
[332637163,1721389625981,150.80395486,0.00020744,30]
[332637164,1721389626032,150.80395486,0.00020329,120]
[332637165,1721389648759,273.37336231,9.9e-05,2]
[332637166,1721389657384,273.37336231,9.9e-05,2]
[332637167,1721389665167,-3000.0,0.00014545,2]
[332637168,1721389665189,-166.666666,0.00014795,2]
[332637169,1721389665211,-1043.69980669,0.00015,2]
[332637170,1721389666569,273.37336231,9.9e-05,2]
[332637171,1721389700848,5477.24580596,0.00012,2]
[332637175,1721389718722,274.60030858,0.00012,2]
[332637176,1721389720029,332.11512548,0.00012,2]
[332637177,1721389723960,179.76860598,0.00012,2]
[332637178,1721389725594,273.37336231,9.9e-05,2]
[332637179,1721389732309,154.80649189,0.00012,2]
[332637180,1721389733651,273.37336231,9.9e-05,2]
[332637181,1721389750646,657.59368035,0.00012,2]
[332637236,1721389832034,-257.98438268,0.00014545,2]
[332637238,1721389832045,-166.666666,0.00014795,2]
[332637240,1721389832054,-447.54582446,0.00015607,2]
[332637242,1721389832064,-300.0,0.00015707,2]
[332637244,1721389832075,-22216.18733652,0.00015708,2]
[332637246,1721389832085,-170.8068254,0.0001589,2]
[332637248,1721389832094,-2213.0532778,0.00015952,2]
[332637250,1721389832104,-30435.58247862,0.00015953,2]
[332637252,1721389832114,-175.0,0.00016337,2]
[332637254,1721389832122,-175.0,0.00016382,2]
[332637256,1721389832132,-175.0,0.00016427,2]
[332637258,1721389832141,-175.0,0.00016472,2]
[332637259,1721389832151,-175.0,0.00016517,2]
[332637261,1721389832160,-531.81427613,0.00016532,2]
[332637263,1721389832170,-175.0,0.00016561,2]
[332637265,1721389832179,-175.0,0.00016606,2]
[332637267,1721389832189,-175.0,0.00016651,2]
[332637269,1721389832198,-175.0,0.00016696,2]
[332637271,1721389832207,-175.0,0.00016741,2]
[332637273,1721389832216,-175.0,0.00016785,2]
[332637275,1721389832226,-175.0,0.0001683,2]
[332637277,1721389832235,-175.0,0.00016875,2]
[332637279,1721389832244,-175.0,0.0001692,2]
[332637281,1721389832253,-3592.58559915,0.00016954,2]
[332637283,1721389832262,-175.0,0.00016965,2]
[332637286,1721389832274,-153.0,0.00016986,2]
[332637288,1721389832285,-153.0,0.00016986,2]
[332637290,1721389832295,-153.0,0.00016986,2]
[332637292,1721389832305,-175.0,0.00017009,2]
[332637294,1721389832314,-175.0,0.00017054,2]
[332637296,1721389832325,-175.0,0.00017099,2]
[332637297,1721389832335,-175.0,0.00017144,2]
[332637298,1721389832348,-175.0,0.00017189,2]
[332637299,1721389832358,-420.0,0.00017278,2]
[332637300,1721389832368,-153.0,0.00017278,2]
[332637301,1721389832377,-153.0,0.00017378,2]
[332637302,1721389832386,-153.0,0.00017378,2]
[332637303,1721389832396,-153.0,0.00017378,2]
[332637304,1721389832405,-274.99366904,0.00017379,2]
[332637353,1721389838000,-5259.53610267,0.00016516,5]
[332637354,1721389838013,-503.55998711,0.00017379,2]
[332637355,1721389838026,-153.0,0.00017478,2]
[332637356,1721389838040,-153.0,0.00017478,2]
[332637357,1721389838054,-3592.58559911,0.0001757,2]
[332637358,1721389838067,-153.0,0.00017756,2]
[332637359,1721389838080,-153.0,0.00017808,2]
[332637360,1721389838096,-153.0,0.00017808,2]
[332637361,1721389838115,-153.0,0.00017808,2]
[332637362,1721389838131,-153.0,0.00017808,2]
[332637363,1721389838143,-153.0,0.00017808,2]
[332637364,1721389838159,-304.58579467,0.0001784,2]
[332637365,1721389838174,-210.3980206,0.0001784,2]
[332637366,1721389838189,-156.58671833,0.0001784,2]
[332637367,1721389838203,-154.86617689,0.0001784,2]
[332637368,1721389838219,-3592.58559911,0.00018187,2]
[332637369,1721389838234,-293.756678,0.00018219,2]
[332637370,1721389838248,-206.5463282,0.00018219,2]
[332637371,1721389838261,-293.756678,0.00018219,2]
[332637372,1721389838273,-206.5463282,0.00018219,2]
[332637373,1721389838284,-206.5463282,0.00018219,2]
[332637374,1721389838296,-293.756678,0.00018219,2]
[332637375,1721389838312,-293.756678,0.00018219,2]
[332637376,1721389838325,-206.5463282,0.00018219,2]
[332637377,1721389838338,-293.756678,0.00018219,2]
[332637378,1721389838351,-206.5463282,0.00018219,2]
[332637379,1721389838364,-206.5463282,0.00018219,2]
[332637380,1721389838375,-293.756678,0.00018219,2]
[332637381,1721389838388,-206.5463282,0.00018219,2]
[332637382,1721389838401,-293.756678,0.00018219,2]
[332637383,1721389838414,-293.756678,0.00018219,2]
[332637384,1721389838442,-293.756678,0.00018219,2]
[332637385,1721389838455,-293.756678,0.00018219,2]
[332637386,1721389838468,-293.756678,0.00018219,2]
[332637387,1721389838481,-293.756678,0.00018219,2]
[332637388,1721389838494,-293.756678,0.00018219,2]
[332637389,1721389838506,-293.756678,0.00018219,2]
[332637390,1721389838518,-293.756678,0.00018219,2]
[332637391,1721389838531,-245.73742899,0.00018402,2]
[332637392,1721389838543,-151.0,0.00018582,2]
[332637393,1721389838555,-312.13961878,0.00018599,2]
[332637394,1721389838567,-5000.0,0.000186,2]
[332637395,1721389838580,-664.64,0.000186,2]
[332637396,1721389838591,-599.33883006,0.00018629,2]
[332637397,1721389838603,-217.28627782,0.00018679,2]
[332637398,1721389838616,-1628.0642344,0.00018679,2]
[332637399,1721389838628,-150.0,0.00018684,2]
[332637400,1721389838640,-504.0,0.00018684,2]
[332637401,1721389838652,-1408.0,0.00018684,2]
[332637402,1721389838663,-250.097,0.00018684,2]
[332637403,1721389838675,-151.0,0.00018691,2]
[332637404,1721389838687,-187.9693203,0.00018745,2]
[332637405,1721389838699,-9634.60137661,0.00018773,2]
[332637406,1721389838711,-151.0,0.00018798,2]
[332637407,1721389838722,-154.80649189,0.00018799,2]
[332637408,1721389838733,-151.0,0.000188,2]
[332637409,1721389838747,-3592.58559911,0.00018803,2]
[332637410,1721389838760,-155.80080012,0.00018825,2]
[332637411,1721389838772,-187.96932029,0.00018828,2]
[332637412,1721389838784,-483.12,0.00018835,3]
[332637413,1721389838795,-42672.9091955,0.0001889,2]
[332637414,1721389838807,-3696.75929173,0.000189,2]
[332637415,1721389838818,-500.0,0.00018904,2]
[332637416,1721389838831,-500.0,0.00018904,2]
[332637417,1721389838842,-500.0,0.00018904,2]
[332637418,1721389838855,-500.0,0.00018904,2]
[332637419,1721389838868,-500.0,0.00018904,2]
[332637420,1721389838880,-500.0,0.00018904,2]
[332637421,1721389838897,-500.0,0.00018904,2]
[332637422,1721389838910,-340.85613617,0.00018904,2]
[332637423,1721389838923,-151.0,0.00018908,2]
[332637424,1721389838936,-187.96932029,0.00018912,2]
[332637425,1721389838949,-620.00000007,0.0001892,2]
[332637426,1721389838963,-6995.74191931,0.00018921,2]
[332637427,1721389838975,-2708.53736941,0.00018979,2]
[332637428,1721389838989,-187.96932029,0.00018995,2]
[332637429,1721389839005,-393.02408056,0.00018998,14]
[332637430,1721389839018,-150.112233,0.00019,2]
[332637431,1721389839035,-587.0,0.00019005,2]
[332637432,1721389839049,-151.0,0.00019017,2]
[332637433,1721389839063,-250.0,0.00019041,2]
[332637434,1721389839077,-187.96932029,0.00019078,2]
[332637435,1721389839090,-151.0,0.00019126,2]
[332637436,1721389839103,-495.388809,0.00019128,2]
[332637437,1721389839115,-495.388809,0.00019128,2]
[332637438,1721389839127,-154.80649189,0.00019153,2]
[332637439,1721389839139,-151.0,0.00019167,2]
[332637440,1721389839152,-2137.43178425,0.00019167,2]
[332637441,1721389839164,-186.55373295,0.00019167,2]
[332637442,1721389839175,-500.0,0.00019167,2]
[332637443,1721389839187,-500.0,0.00019167,2]
[332637444,1721389839198,-340.31161102,0.00019167,2]
[332637445,1721389839210,-551.02764589,0.00019167,2]
[332637446,1721389839222,-500.0,0.00019167,2]
[332637447,1721389839234,-500.0,0.00019167,2]
[332637448,1721389839246,-500.0,0.00019167,2]
[332637449,1721389839258,-500.0,0.00019167,2]
[332637450,1721389839269,-500.0,0.00019167,2]
[332637451,1721389839283,-341.9237713,0.00019167,2]
[332637452,1721389839295,-500.0,0.00019167,2]
[332637453,1721389839306,-4882.70960657,0.00019168,2]
[332637464,1721389840607,-179.7921288,0.00017412,2]
[332637465,1721389840618,-1821.17230894,0.00019168,2]
[332637681,1721390640980,675.87321328,9.999e-05,2]
[332637682,1721390641012,102.68044287,9.999e-05,2]
[332637683,1721390678589,635.15928968,0.0001212,2]
[332637684,1721390678615,143.39436647,0.0001212,2]
[332637685,1721390721608,778.55365615,0.0001212,2]
[332637686,1721390837092,778.55365615,9.999e-05,2]
[332637687,1721390867101,778.55365615,9.999e-05,2]
[332637688,1721390905832,500.53764773,0.00012119,2]
[332637689,1721390914808,778.55365615,0.0001212,2]
[332637690,1721390923017,501.40754687,0.0001212,2]
[332637691,1721390941316,273.89972844,0.0001212,2]
[332637692,1721390963180,-275.79496291,0.00014691,2]
[332637693,1721390963211,-166.666666,0.00014795,2]
[332637730,1721391032130,-271.41006916,0.00014691,2]
[332637732,1721391032139,-166.666666,0.00014795,2]
[332637734,1721391032149,-250.0,0.00017731,2]
[332637736,1721391032159,-2708.53736941,0.00017882,2]
[332637738,1721391032168,-183.149699,0.00017916,2]
[332637739,1721391032178,-183.04523175,0.00017933,2]
[332637741,1721391032188,-1882.42935354,0.00018346,2]
[332637967,1721391038295,-255.00243071,0.00018346,2]
[332637968,1721391038304,-1408.0,0.00018379,2]
[332637969,1721391038314,-1500.0,0.00018489,2]
[332637970,1721391038323,-300.0,0.00018628,2]
[332637971,1721391038332,-1021.4432238,0.00018701,2]
[332637972,1721391038343,-6619.05529187,0.00018773,2]
[332637973,1721391038352,-150.0,0.00018817,2]
[332637975,1721391038361,-493.058,0.00018817,2]
[332637976,1721391038371,-941.25374337,0.00018825,2]
[332637977,1721391038380,-1628.0642344,0.00018845,2]
[332637978,1721391038389,-821.50206483,0.000189,2]
[332637979,1721391038399,-2232.82692229,0.000189,2]
[332637980,1721391038409,-293.756678,0.00018904,2]
[332637981,1721391038418,-2213.0532778,0.00018921,2]
[332637982,1721391038428,-163.82495266,0.00018921,2]
[332637983,1721391038442,-820.99147451,0.00018945,2]
[332637984,1721391038451,-531.81427613,0.00018945,2]
[332637985,1721391038461,-493.50123803,0.0001895,2]
[332637986,1721391038470,-492.04095382,0.00018969,2]
[332637987,1721391038481,-153.0,0.00019,2]
[332637988,1721391038491,-306.0,0.00019,2]
[332637989,1721391038501,-153.0,0.00019,2]
[332637990,1721391038511,-153.0,0.00019,2]
[332637991,1721391038520,-293.756678,0.00019,2]
[332637992,1721391038529,-153.0,0.00019,2]
[332637993,1721391038539,-150.112233,0.00019,2]
[332637994,1721391038547,-293.0940667,0.00019,2]
[332637995,1721391038556,-153.0,0.00019,2]
[332637996,1721391038566,-250.0,0.00019041,2]
[332637997,1721391038575,-175.48136889,0.00019067,2]
[332637998,1721391038584,-175.48136886,0.0001907,2]
[332637999,1721391038596,-175.48136886,0.00019073,2]
[332638000,1721391038605,-175.48136886,0.00019075,2]
[332638001,1721391038615,-1401.79680723,0.00019078,2]
[332638002,1721391038624,-175.48136886,0.00019078,2]
[332638003,1721391038634,-432.0,0.000191,2]
[332638004,1721391038643,-153.0,0.000191,2]
[332638005,1721391038652,-153.0,0.000191,2]
[332638006,1721391038662,-153.0,0.000191,2]
[332638007,1721391038672,-153.0,0.000191,2]
[332638008,1721391038681,-153.0,0.000191,2]
[332638009,1721391038690,-153.0,0.000191,2]
[332638010,1721391038963,-153.0,0.000191,2]
[332638011,1721391038973,-153.0,0.000191,2]
[332638012,1721391038983,-293.756678,0.000191,2]
[332638013,1721391038992,-153.0,0.000191,2]
[332638014,1721391039001,-153.0,0.000191,2]
[332638015,1721391039010,-322.08,0.00019148,3]
[332638016,1721391039019,-2629.76805134,0.00019158,5]
[332638017,1721391039029,-203402.765687,0.00019158,2]
[332638018,1721391039038,-588.21812772,0.00019167,2]
[332638019,1721391039046,-500.0,0.00019167,2]
[332638020,1721391039055,-500.0,0.00019167,2]
[332638021,1721391039065,-500.0,0.00019167,2]
[332638022,1721391039074,-204.16457445,0.00019167,2]
[332638023,1721391039083,-485.71935213,0.00019167,2]
[332638024,1721391039095,-500.0,0.00019167,2]
[332638025,1721391039104,-500.0,0.00019167,2]
[332638026,1721391039113,-192.91520211,0.00019167,2]
[332638027,1721391039122,-67747.73387135,0.00019168,2]
[332638072,1721391043306,-360.263448,0.00018557,2]
[332638086,1721391046363,-1438.1,0.00018557,2]
[332638087,1721391555474,154.82195475,0.00022493,60]
[332638088,1721391617466,154.82195475,0.00022493,60]
[332638091,1721391741976,154.82195475,0.00022493,60]
[332638092,1721391756978,154.82195475,0.00022493,60]
[332638094,1721391886971,154.82195475,0.00022493,60]
[332638097,1721391968968,226.4801998,0.00022493,60]
[332638098,1721392014149,-166.666666,0.00014795,2]
[332638099,1721392014171,-134.98082077,0.00018657,2]
[332638102,1721392123121,7196.25934248,0.0001,2]
[332638103,1721392150105,-184.39320847,0.00018657,2]
[332638104,1721392150126,-530.31617628,0.000188,3]
[332638105,1721392150147,-361.199,0.00018816,2]
[332638106,1721392150167,-620.0,0.00018873,2]
[332638107,1721392150187,-5035.13400414,0.00018921,2]
[332638224,1721392243901,-165.43796753,0.00014795,2]
[332638258,1721393206478,-301.64781032,0.00014695,2]
[332638271,1721393376355,500.0,0.00014001,2]
[332638273,1721393398606,1000.0,0.00024,60]
[332638274,1721393403401,-290.98171799,0.00014695,2]
[332638275,1721393403434,-166.666666,0.00014795,2]
[332638287,1721393434338,-217.72515829,0.00014695,2]
[332638288,1721393434347,-343.73780975,0.0001571,2]
[332638315,1721393443694,-227.22300478,0.0001571,2]
[332638316,1721393443704,-1500.0,0.0001571,2]
[332638317,1721393443713,-309.18067122,0.00015712,2]
[332638318,1721393443723,-253.93465086,0.00015744,2]
[332638319,1721393443732,-290.12903623,0.00016038,2]
[332638320,1721393443742,-7315.94819904,0.00016038,2]
[332638321,1721393443752,-300.0,0.00016094,2]
[332638322,1721393443762,-5922.09149986,0.0001611,2]
[332638323,1721393443771,-240.47792778,0.00017403,2]
[332638324,1721393443781,-420.0,0.00017703,2]
[332638325,1721393443791,-180.13491247,0.00017933,2]
[332638326,1721393443800,-154.8364371,0.00018,2]
[332638327,1721393443810,-153.0,0.00018041,2]
[332638328,1721393443819,-153.0,0.00018178,2]
[332638329,1721393443829,-153.0,0.00018241,2]
[332638330,1721393443839,-5512.28778417,0.00018302,2]
[332638331,1721393443848,-2213.0532778,0.00018302,2]
[332638332,1721393443858,-526.68531291,0.00018346,2]
[332638333,1721393443867,-153.0,0.00018378,2]
[332638335,1721393443877,-1314.47736741,0.00018489,2]
[332638337,1721393443889,-1628.0642344,0.00018489,2]
[332638340,1721393443900,-931.37691405,0.00018657,2]
[332638343,1721393443909,-277.07523786,0.00018667,2]
[332638345,1721393443918,-4375.05910698,0.00018679,2]
[332638346,1721393443928,-154.80649189,0.0001872,2]
[332638348,1721393443937,-314.51920936,0.00018786,2]
[332638351,1721393443947,-294.85708148,0.00018825,2]
[332638355,1721393443957,-561.46296804,0.00018845,2]
[332638359,1721393443966,-3387.91863878,0.00018899,2]
[332638362,1721393443977,-2190.67217288,0.000189,2]
[332638365,1721393443987,-2394.15005228,0.00018921,2]
[332638367,1721393443997,-403.6290569,0.00018945,2]
[332638369,1721393444007,-4741.10517712,0.00018969,2]
[332638370,1721393444017,-1231.22700678,0.00018999,2]
[332638371,1721393444027,-150.112233,0.00019,2]
[332638372,1721393444037,-198.4345538,0.00019046,2]
[332638373,1721393444047,-156.50340593,0.00019046,2]
[332638374,1721393444056,-222.42952001,0.00019068,2]
[332638375,1721393444067,-222.42951997,0.00019071,2]
[332638376,1721393444076,-222.42951997,0.00019073,2]
[332638377,1721393444085,-222.42951997,0.00019076,2]
[332638378,1721393444094,-222.42951997,0.00019078,2]
[332638379,1721393444105,-500.0,0.00019167,2]
[332638380,1721393444116,-500.0,0.00019167,2]
[332638381,1721393444125,-54499.6395584,0.00019168,2]
[332638382,1721393444135,-151.0,0.00019168,2]
[332638383,1721393444144,-445.924489,0.00019168,2]
[332638384,1721393444155,-445.924489,0.00019168,2]
[332638385,1721393444166,-151.0,0.00019168,2]
[332638386,1721393444176,-317.698828,0.00019168,2]
[332638387,1721393444185,-151.0,0.00019168,2]
[332638388,1721393444195,-190748.738454,0.00019168,2]
[332638389,1721393444204,-500.0,0.00019177,2]
[332638390,1721393444213,-411.7526894,0.00019177,2]
[332638391,1721393444222,-435.04064148,0.00019177,2]
[332638392,1721393444232,-500.0,0.00019177,2]
[332638393,1721393444241,-240.00354649,0.00019177,2]
[332638394,1721393444255,-500.0,0.00019177,2]
[332638395,1721393444264,-18099.15990119,0.00019178,5]
[332638396,1721393444277,-79907.80476942,0.00019178,5]
[332638397,1721393444286,-339.35738855,0.00019178,2]
[332638398,1721393444297,-502.47171946,0.00019178,2]
[332638399,1721393444306,-500.0,0.00019178,2]
[332638400,1721393444316,-500.0,0.00019178,2]
[332638401,1721393444325,-500.0,0.00019178,2]
[332638402,1721393444335,-500.0,0.00019178,2]
[332638403,1721393444344,-500.0,0.00019178,2]
[332638404,1721393444353,-500.0,0.00019178,2]
[332638405,1721393444362,-566.29283135,0.00019178,2]
[332638406,1721393444372,-500.0,0.00019178,2]
[332638407,1721393444382,-513.58073666,0.00019178,2]
[332638408,1721393444392,-500.0,0.00019178,2]
[332638409,1721393444403,-500.0,0.00019178,2]
[332638410,1721393444412,-507.91840719,0.00019178,2]
[332638411,1721393444421,-500.0,0.00019178,2]
[332638412,1721393444431,-500.0,0.00019178,2]
[332638413,1721393444441,-500.0,0.00019178,2]
[332638414,1721393444451,-500.0,0.00019178,2]
[332638415,1721393444461,-500.0,0.00019178,2]
[332638416,1721393444470,-500.83390528,0.00019178,2]
[332638417,1721393444479,-500.0,0.00019178,2]
[332638418,1721393444489,-575.82,0.00019178,2]
[332638419,1721393444498,-500.0,0.00019178,2]
[332638420,1721393444507,-500.0,0.00019178,2]
[332638421,1721393444516,-500.0,0.00019178,2]
[332638422,1721393444526,-500.0,0.00019178,2]
[332638423,1721393444535,-500.0,0.00019178,2]
[332638424,1721393444545,-500.0,0.00019178,2]